[Event "1000 GM Labor Day Super Swiss 2024"]
[Site "San Jose"]
[Date "2024.08.31"]
[Round "1.12"]
[White "Batchuluun, Tsegmed"]
[Black "Harish, Neeraj"]
[Result "1-0"]
[Annotator "RC"]
[ECO "D85"]
[WhiteElo "2458"]
[BlackElo "2118"]
[PlyCount "83"]
[EventDate "2024.08.30"]
[EventCountry "USA"]
[SourceTitle "playchess.com"]
[Source "ChessBase"]
[SourceQuality "1"]
[TimeControl "5400+30"]

1. d4 {[%emt 0:00:03]} Nf6 {[%emt 0:05:42]} 2. c4 {[%emt 0:00:10]} g6 {[%emt 0:00:20]} 3. Nc3 {[%emt 0:00:06]} d5 {[%emt 0:00:10]} 4. cxd5 {[%emt 0:00:22]} Nxd5 {[%emt 0:00:07]} 5. e4 {[%emt 0:00:04]} Nxc3 {[%emt 0:00:08]} 6. bxc3 {[%emt 0:00:05]} Bg7 {[%emt 0:00:06]} 7. Nf3 {[%emt 0:00:04]} c5 {[%emt 0:00:07]} 8. Be3 {[%emt 0:00:03]} Qa5 {[%emt 0:00:07]} 9. Qd2 {[%emt 0:00:06]} O-O {[%emt 0:00:07]} 10. Rc1 {[%emt 0:00:02]} Bg4 {[%emt 0:02:47]} 11. d5 {[%emt 0:03:31]} b5 {[%emt 0:00:30]} 12. Be2 {[%emt 0:09:07]} Nd7 {[%emt 0:02:49]} 13. h3 {[%emt 0:00:23]} Bxf3 {[%emt 0:00:29]} 14. Bxf3 {[%emt 0:00:05]} c4 {[%emt 0:02:05]} 15. O-O {[%emt 0:00:26]} Rac8 {[%emt 0:02:26]} 16. Bg4 {[%emt 0:03:05]} f5 {[%emt 0:04:17]} 17. exf5 {[%emt 0:00:04]} gxf5 {[%emt 0:00:15]} 18. Bf3 {[%emt 0:02:18]} Ne5 {[%emt 0:03:03]} 19. Be2 {[%emt 0:00:11]} Nd3 {[%emt 0:05:53]} 20. Bxd3 {[%emt 0:05:56]} cxd3 {[%emt 0:02:41]} 21. Qxd3 {[%emt 0:04:54]} Rxc3 {[%emt 0:01:44]} 22. Rxc3 {[%emt 0:00:09]} Qxc3 {[%emt 0:00:54]} 23. Qxb5 {[%emt 0:00:34]} f4 {[%emt 0:02:14]} 24. Bxa7 {[%emt 0:01:58]} f3 {[%emt 0:00:51]} 25. g3 {[%emt 0:12:30]} Qc8 {[%emt 0:12:19]} 26. Kh2 {[%emt 0:00:54]} Qa8 {[%emt 0:00:52]} 27. Qd7 {[%emt 0:09:36]} Rd8 {[%emt 0:05:42]} 28. Qe6+ {[%emt 0:08:39]} Kh8 {[%emt 0:00:22]} 29. Qxe7 {[%emt 0:01:46]} Qxd5 {[%emt 0:00:14]} 30. Re1 {[%emt 0:08:48]} Ra8 {[%emt 0:02:56]} 31. Qe4 {[%emt 0:02:13]} Qg8 {[%emt 0:02:57]} 32. Bd4 {[%emt 0:03:47]} Rxa2 {[%emt 0:12:31]} 33. Bxg7+ {[%emt 0:00:18]} Qxg7 {[%emt 0:00:08]} 34. Qe8+ {[%emt 0:02:08]} Qg8 {[%emt 0:00:08]} 35. Qe5+ {[%emt 0:00:03]} Qg7 {[%emt 0:00:09]} 36. Qb8+ {[%emt 0:00:04]} Qg8 {[%emt 0:00:06]} 37. Re8 {[%emt 0:00:18]} Rxf2+ {[%emt 0:00:09]} 38. Kg1 {[%emt 0:00:04]} Rg2+ {[%emt 0:00:11]} 39. Kf1 {[%emt 0:00:03]} Rxg3 {[%emt 0:00:31]} 40. Qe5+ {[%emt 0:00:10]} Rg7 {[%emt 0:00:06]} 41. Rxg8+ {[%emt 0:00:04]} Kxg8 {[%emt 0:00:07]} 42. Qe8# {[%emt 0:00:33]} 1-0

[Event "1000 GM Labor Day Super Swiss 2024"]
[Site "San Jose"]
[Date "2024.08.31"]
[Round "1.13"]
[White "Gongora Montes, Benjamin"]
[Black "Hevia Alejano, Carlos Antonio"]
[Result "0-1"]
[Annotator "RC"]
[ECO "A46"]
[WhiteElo "2111"]
[BlackElo "2414"]
[PlyCount "62"]
[EventDate "2024.08.30"]
[EventCountry "USA"]
[SourceTitle "playchess.com"]
[Source "ChessBase"]
[SourceQuality "1"]
[TimeControl "5400+30"]

1. d4 {[%emt 0:00:02]} e6 {[%emt 0:05:35]} 2. Nf3 {[%emt 0:00:48]} c5 {[%emt 0:00:18]} 3. c3 {[%emt 0:00:46]} Nf6 {[%emt 0:00:06]} 4. Bg5 {[%emt 0:00:30]} cxd4 {[%emt 0:01:46]} 5. cxd4 {[%emt 0:00:21]} h6 {[%emt 0:02:58]} 6. Bxf6 {[%emt 0:00:29]} Qxf6 {[%emt 0:00:12]} 7. Nc3 {[%emt 0:00:27]} Bb4 {[%emt 0:03:30]} 8. e4 {[%emt 0:12:20]} O-O {[%emt 0:00:49]} 9. Bd3 {[%emt 0:00:26]} d6 {[%emt 0:02:29]} 10. O-O {[%emt 0:02:24]} Bxc3 {[%emt 0:01:27]} 11. bxc3 {[%emt 0:00:11]} e5 {[%emt 0:03:20]} 12. h3 {[%emt 0:00:29]} Nc6 {[%emt 0:00:38]} 13. Bb5 {[%emt 0:15:00]} Ne7 {[%emt 0:03:31]} 14. Re1 {[%emt 0:04:42]} Ng6 {[%emt 0:04:30]} 15. Rb1 {[%emt 0:05:23]} Be6 {[%emt 0:06:19]} 16. d5 {[%emt 0:05:18]} Bc8 {[%emt 0:00:07]} 17. a4 {[%emt 0:00:10]} Qd8 {[%emt 0:10:10]} 18. Nd2 {[%emt 0:03:16]} f5 {[%emt 0:03:37]} 19. Bf1 {[%emt 0:17:30]} Qc7 {[%emt 0:04:50]} 20. Qb3 {[%emt 0:03:26]} Rf7 {[%emt 0:02:18]} 21. Qb4 {[%emt 0:00:28]} f4 {[%emt 0:16:27]} 22. a5 {[%emt 0:03:15]} Rf6 {[%emt 0:04:41]} 23. c4 {[%emt 0:11:00]} Nh4 {[%emt 0:04:31]} 24. Rec1 {[%emt 0:00:43]} Qe7 {[%emt 0:06:41]} 25. Rb3 {[%emt 0:03:51]} Rg6 {[%emt 0:00:47]} 26. g3 {[%emt 0:04:33]} Bd7 {[%emt 0:02:16]} 27. Qxb7 {[%emt 0:02:01]} Rf8 {[%emt 0:00:04]} 28. Qxa7 {[%emt 0:00:08]} fxg3 {[%emt 0:02:41]} 29. fxg3 {[%emt 0:03:04]} Qg5 {[%emt 0:00:06]} 30. Rc2 {[%emt 0:00:39]} Ba4 {[%emt 0:00:34]} 31. Qe3 {[%emt 0:00:31]} Qxe3+ {[%emt 0:00:35]} 0-1

[Event "1000 GM Labor Day Super Swiss 2024"]
[Site "San Jose"]
[Date "2024.08.31"]
[Round "1.14"]
[White "Chen, Ryo"]
[Black "Tang, Dylan"]
[Result "1/2-1/2"]
[Annotator "RC"]
[ECO "C77"]
[WhiteElo "2408"]
[BlackElo "2092"]
[PlyCount "126"]
[EventDate "2024.08.30"]
[EventCountry "USA"]
[SourceTitle "playchess.com"]
[Source "ChessBase"]
[SourceQuality "1"]
[TimeControl "5400+30"]

1. e4 {[%emt 1:31:00]} e5 {[%emt 0:00:32]} 2. Nf3 {[%emt 0:00:00]} Nc6 {[%emt 0:00:06]} 3. Bb5 {[%emt 0:00:00]} a6 {[%emt 0:00:05]} 4. Ba4 {[%emt 0:00:00]} Nf6 {[%emt 0:00:07]} 5. Nc3 {[%emt 0:00:00]} b5 {[%emt 0:00:50]} 6. Bb3 {[%emt 0:00:00]} Bc5 {[%emt 0:00:27]} 7. Nd5 {[%emt 0:00:00]} O-O {[%emt 0:05:03]} 8. d3 {[%emt 0:00:00]} Nxd5 {[%emt 0:05:00]} 9. Bxd5 {[%emt 0:00:00]} Rb8 {[%emt 0:02:34]} 10. O-O {[%emt 0:00:00]} Qe8 {[%emt 0:10:23]} 11. c3 {[%emt 0:00:00]} Bb6 {[%emt 0:04:18]} 12. d4 {[%emt 0:00:00]} d6 {[%emt 0:11:10]} 13. h3 {[%emt 0:00:00]} Ne7 {[%emt 0:06:19]} 14. Bb3 {[%emt 0:00:00]} Ng6 {[%emt 0:02:38]} 15. Re1 {[%emt 0:00:00]} Be6 {[%emt 0:04:28]} 16. Bc2 {[%emt 0:00:00]} h6 {[%emt 0:01:54]} 17. a4 {[%emt 0:00:00]} c5 {[%emt 0:08:17]} 18. axb5 {[%emt 0:00:00]} axb5 {[%emt 0:01:08]} 19. Be3 {[%emt 0:00:00]} Qe7 {[%emt 0:01:56]} 20. b4 {[%emt 0:00:00]} Rfd8 {[%emt 0:06:03]} 21. bxc5 {[%emt 0:00:00]} dxc5 {[%emt 0:00:09]} 22. d5 {[%emt 0:10:30]} c4 {[%emt 0:01:56]} 23. Qc1 {[%emt 0:00:00]} Bxe3 {[%emt 0:01:50]} 24. Qxe3 {[%emt 0:00:00]} Bd7 {[%emt 0:02:12]} 25. Ra6 {[%emt 0:00:00]} Rdc8 {[%emt 0:02:42]} 26. Ra7 {[%emt 0:00:00]} Ra8 {[%emt 0:02:10]} 27. Rea1 {[%emt 0:00:00]} Rxa7 {[%emt 0:00:28]} 28. Rxa7 {[%emt 0:00:00]} Qd6 {[%emt 0:00:55]} 29. Kh2 {[%emt 0:00:00]} Ne7 {[%emt 0:03:15]} 30. Rb7 {[%emt 0:00:00]} Rb8 {[%emt 0:02:22]} 31. Rxb8+ {[%emt 0:00:00]} Qxb8 {[%emt 0:00:03]} 32. Qc5 {[%emt 0:00:00]} Nc8 {[%emt 0:00:34]} 33. g3 {[%emt 0:00:00]} f6 {[%emt 0:00:53]} 34. Nd2 {[%emt 0:00:00]} Kf7 {[%emt 0:04:07]} 35. Kg2 {[%emt 0:00:00]} Qa7 {[%emt 0:00:58]} 36. Qxa7 {[%emt 0:00:00]} Nxa7 {[%emt 0:00:08]} 37. f4 {[%emt 0:00:00]} Ke7 {[%emt 0:00:49]} 38. Kf3 {[%emt 0:00:00]} Nc8 {[%emt 0:01:35]} 39. h4 {[%emt 0:00:00]} Kd6 {[%emt 0:00:55]} 40. Ke3 {[%emt 0:00:00]} Nb6 {[%emt 0:00:32]} 41. Nf3 {[%emt 0:00:00]} Bc8 {[%emt 0:03:12]} 42. Ne1 {[%emt 0:00:00]} Bg4 {[%emt 0:01:29]} 43. Ng2 {[%emt 0:00:00]} Na4 {[%emt 0:03:32]} 44. Kd2 {[%emt 0:00:00]} Nc5 {[%emt 0:00:18]} 45. Ne3 {[%emt 0:00:00]} Bd7 {[%emt 0:00:56]} 46. Kc1 {[%emt 0:00:00]} Kc7 {[%emt 0:01:30]} 47. Kb2 {[%emt 0:00:00]} Kb6 {[%emt 0:00:21]} 48. Ka3 {[%emt 0:00:00]} Kc7 {[%emt 0:00:12]} 49. Nf1 {[%emt 0:00:00]} Bg4 {[%emt 0:00:37]} 50. Ne3 {[%emt 0:00:00]} Bd7 {[%emt 0:00:41]} 51. Nf1 {[%emt 0:00:00]} Bg4 {[%emt 0:00:06]} 52. Kb4 {[%emt 0:01:09]} Kb6 {[%emt 0:00:05]} 53. Ne3 {[%emt 0:00:09]} Bd7 {[%emt 0:00:16]} 54. fxe5 {[%emt 0:02:28]} fxe5 {[%emt 0:00:06]} 55. Ka3 {[%emt 0:00:28]} Kc7 {[%emt 0:00:44]} 56. Kb2 {[%emt 0:02:18]} Kd6 {[%emt 0:00:17]} 57. Kc1 {[%emt 0:00:31]} Ke7 {[%emt 0:00:25]} 58. Kb1 {[%emt 0:01:21]} Kd6 {[%emt 0:00:15]} 59. Kc1 {[%emt 0:01:07]} Ke7 {[%emt 0:00:29]} 60. Nf1 {[%emt 0:00:26]} Bh3 {[%emt 0:01:24]} 61. Nd2 {[%emt 0:01:27]} Bg4 {[%emt 0:00:28]} 62. Kb2 {[%emt 0:00:41]} Kd6 {[%emt 0:00:28]} 63. Ka3 {[%emt 0:00:30]} Kc7 {[%emt 0:00:13]} 1/2-1/2

[Event "1000 GM Labor Day Super Swiss 2024"]
[Site "San Jose"]
[Date "2024.08.31"]
[Round "1.15"]
[White "Angeles Mercado, Anthony R"]
[Black "Deng, Henry"]
[Result "1-0"]
[Annotator "RC"]
[ECO "B45"]
[WhiteElo "2083"]
[BlackElo "2338"]
[PlyCount "57"]
[EventDate "2024.08.30"]
[EventCountry "USA"]
[SourceTitle "playchess.com"]
[Source "ChessBase"]
[SourceQuality "1"]
[TimeControl "5400+30"]

1. e4 {[%emt 0:03:16]} c5 {[%emt 0:00:14]} 2. Nf3 {[%emt 0:00:13]} e6 {[%emt 0:00:07]} 3. d4 {[%emt 0:00:08]} cxd4 {[%emt 0:00:08]} 4. Nxd4 {[%emt 0:00:06]} Nf6 {[%emt 0:00:06]} 5. Nc3 {[%emt 0:00:07]} Nc6 {[%emt 0:00:02]} 6. Ndb5 {[%emt 0:00:58]} Bc5 {[%emt 0:03:50]} 7. Bf4 {[%emt 0:09:54]} O-O {[%emt 0:00:15]} 8. Bc7 {[%emt 0:00:41]} Qe7 {[%emt 0:00:05]} 9. Bd6 {[%emt 0:00:05]} Bxd6 {[%emt 0:00:05]} 10. Qxd6 {[%emt 0:00:07]} Qd8 {[%emt 0:00:03]} 11. O-O-O {[%emt 0:03:34]} a6 {[%emt 0:00:03]} 12. Nd4 {[%emt 0:02:35]} Ne7 {[%emt 0:00:24]} 13. g4 {[%emt 0:13:03]} b5 {[%emt 0:02:11]} 14. Bd3 {[%emt 0:12:20]} Bb7 {[%emt 0:03:01]} 15. Rhe1 {[%emt 0:02:30]} Ne8 {[%emt 0:07:13]} 16. Qg3 {[%emt 0:04:51]} Qb6 {[%emt 0:08:15]} 17. e5 {[%emt 0:05:10]} Nd5 {[%emt 0:06:14]} 18. Qh4 {[%emt 0:10:01]} g6 {[%emt 0:02:34]} 19. Nxd5 {[%emt 0:03:49]} Bxd5 {[%emt 0:00:11]} 20. Nf5 {[%emt 0:03:49]} exf5 {[%emt 0:05:41]} 21. gxf5 {[%emt 0:00:06]} Rc8 {[%emt 0:08:52]} 22. Re3 {[%emt 0:03:20]} Ng7 {[%emt 0:11:58]} 23. Qh6 {[%emt 0:03:29]} Bg2 {[%emt 0:08:14]} 24. Rg1 {[%emt 0:07:13]} Qc6 {[%emt 0:02:59]} 25. f6 {[%emt 0:04:43]} Nh5 {[%emt 0:02:30]} 26. Rg3 {[%emt 0:00:20]} Kh8 {[%emt 0:08:48]} 27. R1xg2 {[%emt 0:00:25]} Rg8 {[%emt 0:00:30]} 28. Rh3 {[%emt 0:00:38]} Qxg2 {[%emt 0:00:40]} 29. Qxh7+ {[%emt 0:00:08]} 1-0

[Event "1000 GM Labor Day Super Swiss 2024"]
[Site "San Jose"]
[Date "2024.08.31"]
[Round "1.16"]
[White "Sathish, Pranav"]
[Black "Gonzalez Zharikov, Andrey"]
[Result "1-0"]
[Annotator "RC"]
[ECO "B13"]
[WhiteElo "2337"]
[BlackElo "2070"]
[PlyCount "67"]
[EventDate "2024.08.30"]
[EventCountry "USA"]
[SourceTitle "playchess.com"]
[Source "ChessBase"]
[SourceQuality "1"]
[TimeControl "5400+30"]

1. e4 {[%emt 0:00:02]} c6 {[%emt 0:00:14]} 2. d4 {[%emt 0:00:33]} d5 {[%emt 0:00:06]} 3. exd5 {[%emt 0:01:05]} cxd5 {[%emt 0:00:12]} 4. c3 {[%emt 0:00:03]} Nc6 {[%emt 0:00:14]} 5. Bd3 {[%emt 0:00:06]} Nf6 {[%emt 0:00:07]} 6. h3 {[%emt 0:00:13]} Qc7 {[%emt 0:01:56]} 7. Nf3 {[%emt 0:01:16]} g6 {[%emt 0:00:38]} 8. O-O {[%emt 0:00:50]} Bf5 {[%emt 0:07:13]} 9. Be2 {[%emt 0:01:39]} Bg7 {[%emt 0:03:02]} 10. Re1 {[%emt 0:01:05]} O-O {[%emt 0:04:48]} 11. Be3 {[%emt 0:02:39]} Rab8 {[%emt 0:07:38]} 12. Qc1 {[%emt 0:03:10]} Rbc8 {[%emt 0:05:31]} 13. Nbd2 {[%emt 0:03:34]} a6 {[%emt 0:07:37]} 14. Nf1 {[%emt 0:06:13]} Ne4 {[%emt 0:04:42]} 15. Ng3 {[%emt 0:07:07]} Nxg3 {[%emt 0:02:33]} 16. fxg3 {[%emt 0:00:04]} h5 {[%emt 0:03:17]} 17. Qd2 {[%emt 0:04:41]} b5 {[%emt 0:03:07]} 18. Kh2 {[%emt 0:03:51]} Qb7 {[%emt 0:02:35]} 19. Nh4 {[%emt 0:00:44]} Be4 {[%emt 0:02:00]} 20. Bh6 {[%emt 0:01:12]} e6 {[%emt 0:25:07]} 21. Rf1 {[%emt 0:04:56]} Qe7 {[%emt 0:01:56]} 22. Rf2 {[%emt 0:01:32]} e5 {[%emt 0:02:05]} 23. Bxg7 {[%emt 0:01:58]} Kxg7 {[%emt 0:00:01]} 24. dxe5 {[%emt 0:01:05]} Nxe5 {[%emt 0:00:47]} 25. Re1 {[%emt 0:05:20]} Nc4 {[%emt 0:06:08]} 26. Bxc4 {[%emt 0:03:27]} Rxc4 {[%emt 0:02:33]} 27. Qxd5 {[%emt 0:00:41]} Qa7 {[%emt 0:02:05]} 28. Qd2 {[%emt 0:00:51]} Rd8 {[%emt 0:03:13]} 29. Qf4 {[%emt 0:01:48]} Qe7 {[%emt 0:02:14]} 30. b3 {[%emt 0:01:52]} g5 {[%emt 0:00:04]} 31. Nf5+ {[%emt 0:00:57]} Bxf5 {[%emt 0:00:01]} 32. Qxf5 {[%emt 0:00:08]} Qxe1 {[%emt 0:00:09]} 33. Qxf7+ {[%emt 0:00:08]} Kh8 {[%emt 0:00:06]} 34. Rf6 {[%emt 0:00:05]} 1-0

[Event "1000 GM Labor Day Super Swiss 2024"]
[Site "San Jose"]
[Date "2024.08.31"]
[Round "1.17"]
[White "Karthi, Jashith"]
[Black "Sivakumar, Shaashwath"]
[Result "1-0"]
[Annotator "RC"]
[ECO "D15"]
[WhiteElo "2066"]
[BlackElo "2321"]
[PlyCount "71"]
[EventDate "2024.08.30"]
[EventCountry "USA"]
[SourceTitle "playchess.com"]
[Source "ChessBase"]
[SourceQuality "1"]
[TimeControl "5400+30"]

1. d4 {[%emt 1:31:00]} d5 {[%emt 1:31:00]} 2. c4 {[%emt 0:00:00]} c6 {[%emt 0:00:00]} 3. Nf3 {[%emt 0:00:00]} Nf6 {[%emt 0:00:00]} 4. Nc3 {[%emt 0:00:00]} dxc4 {[%emt 0:00:00]} 5. e4 {[%emt 0:00:00]} b5 {[%emt 0:00:00]} 6. Be2 {[%emt 0:00:00]} e6 {[%emt 0:00:00]} 7. a4 {[%emt 0:00:00]} b4 {[%emt 0:00:00]} 8. e5 {[%emt 0:00:00]} bxc3 {[%emt 0:00:00]} 9. exf6 {[%emt 0:00:00]} cxb2 {[%emt 0:00:00]} 10. fxg7 {[%emt 0:00:00]} bxa1=Q {[%emt 0:00:00]} 11. gxh8=Q {[%emt 0:00:00]} Qa5+ {[%emt 0:00:00]} 12. Nd2 {[%emt 0:00:00]} c3 {[%emt 0:00:00]} 13. O-O {[%emt 0:00:00]} cxd2 {[%emt 0:00:00]} 14. Bxd2 {[%emt 0:00:00]} Qxd1 {[%emt 0:00:00]} 15. Rxd1 {[%emt 0:00:00]} Qf5 {[%emt 0:00:00]} 16. d5 {[%emt 0:00:00]} Qg6 {[%emt 0:00:00]} 17. Qe5 {[%emt 0:00:00]} Qf5 {[%emt 0:00:00]} 18. Qc7 {[%emt 0:00:00]} e5 {[%emt 0:00:00]} 19. dxc6 {[%emt 0:00:00]} Be7 {[%emt 0:00:00]} 20. Bb4 {[%emt 0:00:00]} Nd7 {[%emt 0:00:00]} 21. cxd7+ {[%emt 0:00:00]} Bxd7 {[%emt 0:00:00]} 22. Bxe7 {[%emt 0:00:00]} Kxe7 {[%emt 0:00:00]} 23. Qc5+ {[%emt 0:00:00]} Kf6 {[%emt 0:00:00]} 24. Qd5 {[%emt 0:00:00]} Rd8 {[%emt 0:00:00]} 25. Qd6+ {[%emt 0:00:00]} Qe6 {[%emt 0:00:00]} 26. Qc7 {[%emt 0:00:00]} Ke7 {[%emt 0:00:35]} 27. Qxa7 {[%emt 0:00:00]} Qb3 {[%emt 0:01:37]} 28. Qc5+ {[%emt 0:00:00]} Ke8 {[%emt 0:02:09]} 29. Qxe5+ {[%emt 0:00:00]} Qe6 {[%emt 0:00:04]} 30. Qxe6+ {[%emt 0:00:00]} Bxe6 {[%emt 0:00:05]} 31. Rxd8+ {[%emt 0:00:00]} Kxd8 {[%emt 0:00:04]} 32. a5 {[%emt 0:00:00]} Kc7 {[%emt 0:00:02]} 33. f4 {[%emt 0:00:00]} Bd5 {[%emt 0:00:09]} 34. Kf2 {[%emt 0:00:00]} f6 {[%emt 0:00:20]} 35. g4 {[%emt 0:00:00]} h6 {[%emt 0:00:12]} 36. Ke3 {[%emt 0:00:00]} 1-0

[Event "1000 GM Labor Day Super Swiss 2024"]
[Site "San Jose"]
[Date "2024.08.31"]
[Round "1.18"]
[White "Sivakumar, Shaaketh"]
[Black "Garduno Huerta, Joshua Emiliano"]
[Result "1-0"]
[Annotator "RC"]
[ECO "D02"]
[WhiteElo "2307"]
[BlackElo "2056"]
[PlyCount "45"]
[EventDate "2024.08.30"]
[EventCountry "USA"]
[SourceTitle "playchess.com"]
[Source "ChessBase"]
[SourceQuality "1"]
[TimeControl "5400+30"]

1. d4 {[%emt 0:00:06]} d5 {[%emt 0:00:34]} 2. Nf3 {[%emt 0:00:08]} Nf6 {[%emt 0:01:08]} 3. Bf4 {[%emt 0:00:09]} e6 {[%emt 0:00:08]} 4. e3 {[%emt 0:00:05]} Bd6 {[%emt 0:00:06]} 5. Ne5 {[%emt 0:00:08]} O-O {[%emt 0:04:38]} 6. Nd2 {[%emt 0:00:06]} c5 {[%emt 0:01:15]} 7. c3 {[%emt 0:00:10]} Qc7 {[%emt 0:00:49]} 8. Bd3 {[%emt 0:00:12]} Nbd7 {[%emt 0:03:59]} 9. Ndf3 {[%emt 0:00:01]} c4 {[%emt 0:12:51]} 10. Bc2 {[%emt 0:00:18]} b5 {[%emt 0:04:44]} 11. h4 {[%emt 0:06:49]} Ne4 {[%emt 0:18:35]} 12. Ng5 {[%emt 0:05:12]} Bb7 {[%emt 0:19:53]} 13. f3 {[%emt 0:05:03]} Nef6 {[%emt 0:15:00]} 14. Nxd7 {[%emt 0:01:12]} Qxd7 {[%emt 0:00:10]} 15. Be5 {[%emt 0:00:11]} h6 {[%emt 0:05:39]} 16. Bxf6 {[%emt 0:00:52]} hxg5 {[%emt 0:00:46]} 17. hxg5 {[%emt 0:03:14]} gxf6 {[%emt 0:03:30]} 18. gxf6 {[%emt 0:00:20]} Qd8 {[%emt 0:03:11]} 19. Rh6 {[%emt 0:00:08]} Be7 {[%emt 0:01:42]} 20. f4 {[%emt 0:00:33]} Bxf6 {[%emt 0:00:21]} 21. Qg4+ {[%emt 0:00:09]} Bg7 {[%emt 0:00:57]} 22. Rh8+ {[%emt 0:00:05]} Kxh8 {[%emt 0:00:40]} 23. Qh5+ {[%emt 0:00:01]} 1-0

[Event "1000 GM Labor Day Super Swiss 2024"]
[Site "San Jose"]
[Date "2024.08.31"]
[Round "1.19"]
[White "Widjaja, Luke"]
[Black "Garcia Guerrero, Isaac Antonio"]
[Result "0-1"]
[Annotator "RC"]
[ECO "B40"]
[WhiteElo "2056"]
[BlackElo "2291"]
[PlyCount "98"]
[EventDate "2024.08.30"]
[EventCountry "USA"]
[SourceTitle "playchess.com"]
[Source "ChessBase"]
[SourceQuality "1"]
[TimeControl "5400+30"]

1. e4 {[%emt 0:00:04]} c5 {[%emt 0:00:33]} 2. Nf3 {[%emt 0:00:10]} e6 {[%emt 0:00:25]} 3. g3 {[%emt 0:00:06]} Nc6 {[%emt 0:00:20]} 4. Bg2 {[%emt 0:00:09]} Nf6 {[%emt 0:00:13]} 5. Qe2 {[%emt 0:00:09]} e5 {[%emt 0:00:29]} 6. O-O {[%emt 0:00:52]} Be7 {[%emt 0:00:20]} 7. c3 {[%emt 0:00:23]} O-O {[%emt 0:00:23]} 8. d3 {[%emt 0:00:13]} Re8 {[%emt 0:00:58]} 9. Bg5 {[%emt 0:07:00]} d6 {[%emt 0:06:13]} 10. Nfd2 {[%emt 0:06:58]} Bg4 {[%emt 0:08:08]} 11. Qe1 {[%emt 0:07:27]} Qd7 {[%emt 0:04:02]} 12. Bxf6 {[%emt 0:07:45]} Bxf6 {[%emt 0:02:09]} 13. Nc4 {[%emt 0:00:54]} Be6 {[%emt 0:07:32]} 14. Ne3 {[%emt 0:04:34]} Ne7 {[%emt 0:11:19]} 15. c4 {[%emt 0:09:08]} Nc6 {[%emt 0:03:45]} 16. Nc3 {[%emt 0:03:24]} Bd8 {[%emt 0:02:14]} 17. Qd1 {[%emt 0:09:36]} Rb8 {[%emt 0:01:11]} 18. Qh5 {[%emt 0:10:16]} Nd4 {[%emt 0:07:48]} 19. Ncd5 {[%emt 0:04:47]} b5 {[%emt 0:01:25]} 20. b3 {[%emt 0:01:36]} bxc4 {[%emt 0:03:46]} 21. dxc4 {[%emt 0:00:43]} a5 {[%emt 0:00:49]} 22. f4 {[%emt 0:05:54]} f6 {[%emt 0:01:18]} 23. fxe5 {[%emt 0:03:28]} fxe5 {[%emt 0:01:44]} 24. Rf2 {[%emt 0:05:21]} g6 {[%emt 0:04:20]} 25. Qd1 {[%emt 0:02:12]} Kg7 {[%emt 0:01:19]} 26. h4 {[%emt 0:01:31]} Rb7 {[%emt 0:04:54]} 27. Nc3 {[%emt 0:03:01]} Bf6 {[%emt 0:09:59]} 28. Ncd5 {[%emt 0:01:37]} Rf8 {[%emt 0:00:53]} 29. Qd2 {[%emt 0:00:54]} Qd8 {[%emt 0:00:55]} 30. Raf1 {[%emt 0:00:44]} Rbf7 {[%emt 0:00:18]} 31. Nxf6 {[%emt 0:01:44]} Rxf6 {[%emt 0:00:17]} 32. Rxf6 {[%emt 0:00:02]} Rxf6 {[%emt 0:00:26]} 33. Rxf6 {[%emt 0:00:57]} Qxf6 {[%emt 0:00:25]} 34. Qf2 {[%emt 0:01:04]} Qd8 {[%emt 0:01:15]} 35. Nc2 {[%emt 0:00:42]} Qb6 {[%emt 0:01:17]} 36. Nxd4 {[%emt 0:00:33]} cxd4 {[%emt 0:00:40]} 37. h5 {[%emt 0:00:37]} gxh5 {[%emt 0:01:44]} 38. Kh2 {[%emt 0:00:39]} Qd8 {[%emt 0:00:36]} 39. Qe1 {[%emt 0:01:23]} Bg4 {[%emt 0:01:56]} 40. Bf1 {[%emt 0:00:46]} Kg6 {[%emt 0:02:00]} 41. Bd3 {[%emt 0:00:22]} Qf6 {[%emt 0:00:38]} 42. Be2 {[%emt 0:00:12]} Bd7 {[%emt 0:02:09]} 43. Kg2 {[%emt 0:00:43]} Qg5 {[%emt 0:01:09]} 44. Qxa5 {[%emt 0:00:42]} h4 {[%emt 0:00:10]} 45. Qe1 {[%emt 0:00:03]} Qe3 {[%emt 0:02:33]} 46. gxh4 {[%emt 0:00:40]} Bh3+ {[%emt 0:00:58]} 47. Kh2 {[%emt 0:00:12]} Bg4 {[%emt 0:00:24]} 48. h5+ {[%emt 0:00:53]} Kg5 {[%emt 0:00:48]} 49. a4 {[%emt 0:00:20]} d3 {[%emt 0:00:51]} 0-1

[Event "1000 GM Labor Day Super Swiss 2024"]
[Site "San Jose"]
[Date "2024.08.31"]
[Round "1.20"]
[White "Yim, Sung Ho"]
[Black "Gui, Suyuan"]
[Result "1-0"]
[Annotator "RC"]
[ECO "A16"]
[WhiteElo "2291"]
[BlackElo "2033"]
[PlyCount "85"]
[EventDate "2024.08.30"]
[EventCountry "USA"]
[SourceTitle "playchess.com"]
[Source "ChessBase"]
[SourceQuality "1"]
[TimeControl "5400+30"]

1. Nf3 {[%emt 0:03:24]} Nf6 {[%emt 0:00:10]} 2. c4 {[%emt 0:00:15]} g6 {[%emt 0:00:24]} 3. Nc3 {[%emt 0:00:05]} d5 {[%emt 0:00:25]} 4. cxd5 {[%emt 0:00:07]} Nxd5 {[%emt 0:00:06]} 5. h4 {[%emt 0:00:14]} Bg7 {[%emt 0:01:41]} 6. h5 {[%emt 0:00:14]} c5 {[%emt 0:06:27]} 7. h6 {[%emt 0:04:03]} Bf6 {[%emt 0:02:35]} 8. Ne4 {[%emt 0:06:43]} Qb6 {[%emt 0:05:20]} 9. g3 {[%emt 0:05:05]} Nc6 {[%emt 0:05:02]} 10. Nxf6+ {[%emt 0:01:43]} Nxf6 {[%emt 0:00:26]} 11. Bg2 {[%emt 0:02:59]} Bf5 {[%emt 0:03:52]} 12. b3 {[%emt 0:04:52]} Rd8 {[%emt 0:04:15]} 13. d3 {[%emt 0:04:35]} O-O {[%emt 0:05:28]} 14. Nd2 {[%emt 0:06:01]} Nd4 {[%emt 0:06:20]} 15. Nc4 {[%emt 0:05:27]} Qc7 {[%emt 0:09:56]} 16. Bf4 {[%emt 0:02:58]} Qc8 {[%emt 0:01:10]} 17. Ne3 {[%emt 0:02:21]} Be6 {[%emt 0:02:13]} 18. Be5 {[%emt 0:06:10]} Nd5 {[%emt 0:02:25]} 19. Rc1 {[%emt 0:04:17]} Nxe3 {[%emt 0:04:35]} 20. fxe3 {[%emt 0:00:05]} Nf5 {[%emt 0:00:33]} 21. Bf4 {[%emt 0:01:04]} b6 {[%emt 0:02:30]} 22. g4 {[%emt 0:02:29]} Nd6 {[%emt 0:01:01]} 23. g5 {[%emt 0:00:06]} Qd7 {[%emt 0:01:41]} 24. Qd2 {[%emt 0:00:57]} Nf5 {[%emt 0:01:41]} 25. Qb2 {[%emt 0:01:48]} f6 {[%emt 0:01:00]} 26. Rf1 {[%emt 0:01:56]} Nh4 {[%emt 0:04:42]} 27. Bh1 {[%emt 0:03:26]} Bh3 {[%emt 0:00:59]} 28. Rg1 {[%emt 0:00:22]} e5 {[%emt 0:01:04]} 29. Bh2 {[%emt 0:01:25]} Nf5 {[%emt 0:02:50]} 30. gxf6 {[%emt 0:06:10]} Nxh6 {[%emt 0:02:29]} 31. Bxe5 {[%emt 0:01:38]} Ng4 {[%emt 0:01:49]} 32. Bf4 {[%emt 0:07:12]} Nxf6 {[%emt 0:01:29]} 33. Bg5 {[%emt 0:02:41]} Qd6 {[%emt 0:01:55]} 34. Qc3 {[%emt 0:02:08]} Bf5 {[%emt 0:02:54]} 35. e4 {[%emt 0:06:10]} Rde8 {[%emt 0:01:16]} 36. Bxf6 {[%emt 0:03:52]} Rxf6 {[%emt 0:01:35]} 37. exf5 {[%emt 0:00:20]} Qh2 {[%emt 0:00:25]} 38. Bd5+ {[%emt 0:00:35]} Kg7 {[%emt 0:00:21]} 39. Rg2 {[%emt 0:00:04]} Qd6 {[%emt 0:00:48]} 40. Be4 {[%emt 0:01:05]} Kf8 {[%emt 0:00:57]} 41. fxg6 {[%emt 0:00:42]} hxg6 {[%emt 0:00:08]} 42. Qxf6+ {[%emt 0:00:28]} Qxf6 {[%emt 0:00:15]} 43. Rf2 {[%emt 0:00:03]} 1-0